bitfinex/quotes_BTCUSD_20260103
["timestamp","ask_amount","ask_price","bid_price","bid_amount"]
[1767481635614,0.01001108,90521.0,90515.0,0.06628685]
[1767481635615,0.0110474,90519.0,90515.0,0.01104789]
[1767481636012,0.01104764,90517.0,90511.0,0.02212]
[1767481636216,0.000999,90515.0,90512.0,0.01104825]
[1767481636517,0.01104777,90516.0,90515.0,0.00099899]
[1767481636863,0.01104764,90517.0,90515.0,0.00099899]
[1767481637064,0.01104764,90517.0,90514.0,0.01104801]
[1767481637693,0.01104777,90516.0,90508.0,0.04662396]
[1767481637894,0.01104777,90516.0,90500.0,0.28998175]
[1767481637895,0.06629087,90511.0,90504.0,0.05767319]
[1767481638091,0.06628901,90513.0,90505.0,0.04662396]
[1767481638264,0.01104813,90513.0,90506.0,0.01104899]
[1767481638712,0.01104801,90514.0,90510.0,0.0110485]
[1767481639490,0.000999,90510.0,90509.0,0.01104862]
[1767481639894,0.01104813,90513.0,90509.0,0.01104862]
[1767481640100,0.01104801,90514.0,90510.0,0.0110485]
[1767481640501,0.01104777,90516.0,90512.0,0.01104825]
[1767481640844,0.01104789,90515.0,90512.0,0.01104825]
[1767481641245,0.01104789,90515.0,90511.0,0.01104838]
[1767481641444,0.01104801,90514.0,90511.0,0.01104838]
[1767481641769,0.01104801,90514.0,90510.0,0.01094849]
[1767481642316,0.01104801,90514.0,90511.0,0.01104838]
[1767481642493,0.01104801,90514.0,90511.0,0.01084835]
[1767481642999,0.01104801,90514.0,90510.0,0.01094849]
[1767481643660,0.01104801,90514.0,90510.0,0.01084848]
[1767481644840,0.01104813,90513.0,90509.0,0.01104862]
[1767481645919,0.05746811,90513.0,90508.0,0.01866897]
[1767481646231,0.04641998,90513.0,90510.0,0.0110485]
[1767481648207,0.000999,90510.0,90507.0,0.06629271]
[1767481648624,0.06628926,90513.0,90507.0,0.06629271]
[1767481649838,0.01104825,90512.0,90508.0,0.01104874]
[1767481650589,0.000999,90508.0,90507.0,0.01104886]
[1767481650880,0.01104899,90506.0,90502.0,0.01104947]
[1767481651001,0.01204774,90508.0,90504.0,0.06018336]
[1767481651204,0.01104874,90508.0,90504.0,0.06018336]
[1767481651422,0.01104862,90509.0,90506.0,0.0489341]
[1767481651861,0.0110485,90510.0,90505.0,0.01084933]
[1767481652065,0.01104862,90509.0,90505.0,0.01084933]
[1767481652464,0.01104874,90508.0,90504.0,0.01104923]
[1767481652840,0.01104886,90507.0,90503.0,0.06629555]
[1767481652962,0.01104874,90508.0,90504.0,0.01104923]
[1767481653169,0.000999,90504.0,90502.0,0.06629674]
[1767481653490,0.01104886,90507.0,90503.0,0.01104935]
[1767481653895,0.01104886,90507.0,90504.0,0.01104923]
[1767481654321,0.06629303,90508.0,90505.0,0.04903774]
[1767481654322,0.01104874,90508.0,90505.0,0.04903774]
[1767481654493,0.01104874,90508.0,90500.0,1e-08]
[1767481654494,0.05524794,90502.0,90500.0,1e-08]
[1767481655105,0.12365511,90501.0,90500.0,1e-08]
[1767481655501,0.01104911,90505.0,90496.0,0.01105021]
[1767481655502,0.01104911,90505.0,90498.0,0.04903774]
[1767481655727,0.02212,90506.0,90503.0,0.04903774]
[1767481655927,0.01104886,90507.0,90501.0,0.07008734]
[1767481656179,0.01104886,90507.0,90501.0,0.06008734]
[1767481656405,0.01104899,90506.0,90501.0,0.06008734]
[1767481656982,0.01104886,90507.0,90506.0,0.05903774]
[1767481657143,0.06629228,90509.0,90506.0,0.01]
[1767481658429,0.01104886,90507.0,90504.0,0.01104923]
[1767481659235,0.01104886,90507.0,90503.0,0.01104935]
[1767481659474,0.000999,90503.0,90500.0,0.01104972]
[1767481659673,0.01104923,90504.0,90500.0,0.01104972]
[1767481659887,0.01104923,90504.0,90498.0,0.03259775]
[1767481660091,0.01104923,90504.0,90500.0,0.04903774]
[1767481660291,0.06629528,90505.0,90503.0,0.04903774]
[1767481660494,0.01104923,90504.0,90503.0,0.04803874]
[1767481660711,0.01104935,90503.0,90500.0,0.04903774]
[1767481661224,0.06629661,90503.0,90500.0,0.04903774]
[1767481661425,0.055248,90501.0,90500.0,0.04903774]
[1767481661614,0.055248,90501.0,90500.0,0.04889353]
[1767481661812,0.06629661,90503.0,90496.0,0.01105021]
[1767481662150,0.01104947,90502.0,90499.0,0.04903774]
[1767481663031,0.06629726,90502.0,90499.0,0.04903774]
[1767481663435,0.01104984,90499.0,90496.0,0.04893376]
[1767481663645,0.01100434,90499.0,90496.0,0.04893376]
[1767481664944,0.01105021,90496.0,90493.0,0.02212]
[1767481665124,0.01105033,90495.0,90491.0,0.01105082]
[1767481665966,0.06629979,90498.0,90493.0,0.05525289]
[1767481666322,0.01105009,90497.0,90493.0,0.06630346]
[1767481667941,0.01105009,90497.0,90493.0,0.01105057]
[1767481668097,0.000999,90493.0,90490.0,0.06008868]
[1767481668298,0.01105033,90495.0,90490.0,0.06008868]
[1767481668541,0.01105021,90496.0,90492.0,0.0110507]
[1767481668697,0.01105045,90494.0,90489.0,0.0110041]
[1767481668889,0.01105045,90494.0,90490.0,0.01105094]
[1767481669094,0.01105033,90495.0,90491.0,0.06630493]
[1767481669295,0.01105033,90495.0,90491.0,0.06636811]
[1767481669492,0.01105021,90496.0,90492.0,0.0110507]
[1767481669970,0.01105009,90497.0,90492.0,0.0110507]
[1767481670101,0.06059189,90497.0,90491.0,0.00513928]
[1767481670296,0.06059189,90497.0,90492.0,0.0110507]
[1767481671196,0.06059189,90497.0,90491.0,6.318e-05]
[1767481671197,0.01105045,90494.0,90491.0,6.318e-05]
[1767481671447,0.000999,90492.0,90491.0,6.318e-05]
[1767481671659,0.01105045,90494.0,90491.0,6.318e-05]
[1767481672309,0.05525289,90493.0,90491.0,1.8e-07]
[1767481674352,0.05525289,90493.0,90482.0,0.04918754]
[1767481674353,0.01105155,90485.0,90482.0,0.04918754]
[1767481674646,0.05525888,90484.0,90482.0,0.04927064]
[1767481675029,0.05525888,90484.0,90482.0,0.0002329]
[1767481675231,0.05525888,90484.0,90478.0,0.00648757]
[1767481675232,0.01105192,90482.0,90478.0,0.00648757]
[1767481675437,0.01105192,90482.0,90479.0,0.01105228]
[1767481675805,0.04903774,90484.0,90479.0,0.01105228]
[1767481676007,0.06008941,90484.0,90480.0,0.01105216]
[1767481677062,0.06008941,90484.0,90479.0,0.01105228]
[1767481677063,0.01105179,90483.0,90479.0,0.01105228]
[1767481677452,0.01105192,90482.0,90479.0,0.01105228]
[1767481677644,0.01105179,90483.0,90479.0,0.01105228]
[1767481678574,0.06631152,90482.0,90478.0,0.00628753]
[1767481678799,0.05526083,90480.0,90478.0,0.00628753]
[1767481679014,0.01105228,90479.0,90471.0,0.04996387]
[1767481679169,0.01105228,90479.0,90471.0,0.03895806]
[1767481679170,0.01105241,90478.0,90471.0,0.03895806]
[1767481679352,0.01105253,90477.0,90472.0,0.06631885]
[1767481679532,0.01105228,90479.0,90475.0,0.01105277]
[1767481679738,0.01105216,90480.0,90476.0,0.01105265]
[1767481680158,0.01105204,90481.0,90476.0,0.01105265]
[1767481680394,0.01105192,90482.0,90478.0,0.01105241]
[1767481680768,0.01105192,90482.0,90479.0,0.01105228]
[1767481681356,0.01105192,90482.0,90478.0,0.01105241]
[1767481682294,0.01105204,90481.0,90476.0,0.01105265]
[1767481682710,0.01105204,90481.0,90477.0,0.01105253]
[1767481683985,0.01105192,90482.0,90477.0,0.06631496]
[1767481684189,0.01105192,90482.0,90478.0,0.01105241]
[1767481684555,0.01105204,90481.0,90477.0,0.01105253]
[1767481685142,0.01105277,90475.0,90470.0,0.06103146]
[1767481685345,0.01105289,90474.0,90470.0,0.03317338]
[1767481685745,0.01105289,90474.0,90471.0,0.01110071]
[1767481686151,0.01105277,90475.0,90471.0,0.01110071]
[1767481686360,0.01105277,90475.0,90467.0,0.03317375]
[1767481687039,0.01105277,90475.0,90471.0,0.01105326]
[1767481687404,0.04962619,90475.0,90472.0,0.01105314]
[1767481687771,0.04962619,90475.0,90472.0,0.06631826]
[1767481687967,0.01105241,90478.0,90473.0,0.01105302]
[1767481688174,0.01105228,90479.0,90474.0,0.06631733]
[1767481688392,0.01105228,90479.0,90474.0,0.11627098]
[1767481688689,0.01105228,90479.0,90475.0,0.01105277]
[1767481688911,0.06631309,90480.0,90476.0,0.01105265]
[1767481689090,0.01105216,90480.0,90476.0,0.0610063]
[1767481689295,0.01105204,90481.0,90477.0,0.06100618]
[1767481689512,0.02737665,90487.0,90482.0,0.04995365]
[1767481689762,0.12365511,90497.0,90482.0,0.04995365]
[1767481689763,0.06630591,90490.0,90484.0,0.05525797]
[1767481689930,0.01105106,90489.0,90486.0,0.01105143]
[1767481690359,0.01105094,90490.0,90486.0,0.01105143]
[1767481690748,0.01105094,90490.0,90485.0,0.01100605]
[1767481690980,0.01105106,90489.0,90485.0,0.00996155]
[1767481691288,0.01105094,90490.0,90489.0,0.000999]
[1767481691490,0.01105094,90490.0,90489.0,1e-08]
[1767481691693,0.01105094,90490.0,90486.0,0.01105143]
[1767481692146,0.01105094,90490.0,90485.0,0.00996155]
[1767481692351,0.01105106,90489.0,90485.0,0.00996155]
[1767481692732,0.01105106,90489.0,90486.0,0.01105143]
[1767481692955,0.000999,90486.0,90485.0,0.00996155]
[1767481693185,0.01105106,90489.0,90485.0,0.00996155]
[1767481693396,0.01105094,90490.0,90486.0,0.01205042]
[1767481693762,0.01105094,90490.0,90486.0,0.01105143]
[1767481694367,0.01105106,90489.0,90486.0,0.01105143]
[1767481694682,0.01105106,90489.0,90485.0,0.00996155]
[1767481694910,0.01105106,90489.0,90486.0,0.01105143]
[1767481695272,0.02212,90493.0,90488.0,0.01105118]
[1767481695509,0.01105021,90496.0,90491.0,0.01105082]
[1767481697163,0.01105033,90495.0,90491.0,0.01105082]
[1767481697338,0.01105033,90495.0,90491.0,0.01100533]
[1767481697544,0.01105033,90495.0,90490.0,0.01105094]
[1767481697545,0.01105045,90494.0,90490.0,0.01105094]
[1767481697958,0.01105033,90495.0,90490.0,0.01105094]
[1767481698163,0.01105033,90495.0,90491.0,0.01105082]
[1767481698326,0.01105009,90497.0,90495.0,0.00089898]
[1767481699146,0.01105057,90493.0,90489.0,0.01105106]
[1767481699445,0.0110507,90492.0,90486.0,0.01105143]
[1767481699643,0.01105094,90490.0,90485.0,0.01105155]
[1767481699834,0.01105106,90489.0,90484.0,0.01105167]
[1767481700035,0.01105106,90489.0,90483.0,0.01105179]
[1767481700231,0.01105106,90489.0,90481.0,0.0773798]
[1767481700232,0.06067786,90484.0,90481.0,0.02212]
[1767481700606,0.06070356,90484.0,90481.0,0.02212]
[1767481701290,0.01101681,90483.0,90481.0,0.02212]
[1767481701521,0.01092842,90483.0,90481.0,0.02212]
[1767481703474,0.06618746,90483.0,90481.0,0.02212]
[1767481703872,0.06518894,90483.0,90481.0,0.02212]
[1767481704953,0.06518894,90483.0,90481.0,0.021121]
[1767481705353,0.06518894,90483.0,90478.0,0.01105241]
[1767481705354,0.06518894,90483.0,90482.0,0.02212]
[1767481705563,0.01105192,90482.0,90477.0,0.01105253]
[1767481705761,0.02105192,90482.0,90478.0,0.02212]
[1767481706013,0.01105204,90481.0,90478.0,0.02212]
[1767481706412,0.01105192,90482.0,90478.0,0.03317241]
[1767481706848,0.01105179,90483.0,90479.0,0.01105228]
[1767481707470,0.0109634,90483.0,90479.0,0.01105228]
[1767481708264,0.00549342,90484.0,90480.0,0.01105216]
[1767481708692,0.01105179,90483.0,90479.0,0.01105228]
[1767481709097,0.06075199,90484.0,90479.0,0.01105228]
[1767481709429,0.06075199,90484.0,90483.0,0.000999]
[1767481709575,0.00549342,90484.0,90483.0,0.000999]
[1767481709759,0.00549342,90484.0,90481.0,0.01105204]
[1767481710706,0.00549342,90484.0,90480.0,0.01105216]
[1767481711759,0.01105179,90483.0,90479.0,0.01105228]
[1767481714127,0.0109634,90483.0,90479.0,0.01105228]
[1767481717127,0.01105192,90482.0,90479.0,0.01105228]
[1767481718128,0.01105155,90485.0,90479.0,0.01105228]
[1767481718915,0.01105155,90485.0,90480.0,0.01105216]
[1767481718916,0.01105167,90484.0,90480.0,0.01105216]
[1767481719253,0.01105192,90482.0,90478.0,0.03317241]
[1767481719556,0.01105179,90483.0,90480.0,0.01105216]
[1767481719759,0.01105167,90484.0,90479.0,0.0663135]
[1767481720817,0.01105167,90484.0,90480.0,0.01105216]
[1767481721442,0.04871709,90483.0,90479.0,0.0163135]
[1767481721682,0.01105167,90484.0,90479.0,0.0163135]
[1767481721861,0.01105167,90484.0,90480.0,0.01105216]
[1767481723801,0.01105167,90484.0,90480.0,0.01100797]
[1767481724408,0.04871709,90483.0,90477.0,0.03786077]
[1767481724616,0.02787951,90484.0,90481.0,0.02212]
[1767481724989,0.01105167,90484.0,90481.0,0.02212]
[1767481725193,0.01105167,90484.0,90482.0,0.04893951]
[1767481727318,0.01105155,90485.0,90482.0,0.04893951]
[1767481727522,0.01105155,90485.0,90484.0,0.04993851]
[1767481727734,0.01105155,90485.0,90484.0,0.04989432]
[1767481727908,0.01105118,90488.0,90484.0,0.04989432]
[1767481728095,0.01105131,90487.0,90484.0,0.04893951]
[1767481728318,0.01105118,90488.0,90485.0,0.04893951]
[1767481728861,0.01009618,90488.0,90485.0,0.04893951]
[1767481729024,0.01105106,90489.0,90485.0,0.05999106]
[1767481729686,0.01105118,90488.0,90485.0,0.04893951]
[1767481729868,0.01105106,90489.0,90485.0,0.05999106]
[1767481730369,0.01105033,90495.0,90487.0,0.05999082]
[1767481730828,0.01105033,90495.0,90490.0,0.04893951]
[1767481731034,0.05525153,90496.0,90492.0,0.04893951]
[1767481731311,0.05525153,90496.0,90492.0,0.04889402]
[1767481731909,0.01105033,90495.0,90492.0,0.04889402]
[1767481732119,0.06630058,90497.0,90492.0,0.05994472]
[1767481732328,0.01104984,90499.0,90492.0,0.05994472]
[1767481732329,0.01104996,90498.0,90494.0,0.01105045]
[1767481732935,0.01111326,90498.0,90494.0,0.01105045]
[1767481733293,0.06629647,90503.0,90494.0,0.05998996]
[1767481733488,0.06629514,90505.0,90499.0,0.01104984]
[1767481733715,0.01104923,90504.0,90500.0,0.01104972]
[1767481734115,0.01104923,90504.0,90500.0,0.01005072]
[1767481735301,0.01,90500.0,90497.0,0.01105009]
[1767481735721,0.01,90500.0,90495.0,0.066302]
[1767481735926,0.02104972,90500.0,90496.0,0.01105021]
[1767481736808,0.0110496,90501.0,90500.0,0.000999]
[1767481737369,0.0110496,90501.0,90498.0,0.01104996]
[1767481738304,0.01104972,90500.0,90496.0,0.01100472]
[1767481738506,0.01104972,90500.0,90495.0,0.066302]
[1767481738507,0.01,90496.0,90495.0,0.04893951]
[1767481739391,0.009001,90496.0,90495.0,0.04893951]
[1767481739642,0.01104996,90498.0,90495.0,0.04893951]
[1767481740090,0.01104996,90498.0,90491.0,0.02212]
[1767481740091,0.0552535,90492.0,90491.0,0.02212]
[1767481740264,0.01105045,90494.0,90491.0,0.02212]
[1767481740845,0.01105033,90495.0,90491.0,0.02212]
[1767481741835,0.01105033,90495.0,90491.0,0.03317082]
[1767481744329,0.06630159,90496.0,90492.0,0.0110507]
[1767481746211,0.01105033,90495.0,90491.0,0.03317082]
[1767481746771,0.01105045,90494.0,90491.0,0.02207451]
[1767481747208,0.06630327,90494.0,90491.0,0.02207451]
[1767481747385,0.06630327,90494.0,90491.0,0.02203033]
[1767481747801,0.01105045,90494.0,90491.0,0.02203033]
[1767481749376,0.0663032,90494.0,90491.0,0.02103133]
[1767481749592,0.0552535,90492.0,90491.0,0.02098584]
[1767481749813,0.0552535,90492.0,90491.0,0.01193935]
[1767481750189,0.0663032,90494.0,90491.0,0.01193935]
[1767481751227,0.01105045,90494.0,90491.0,0.01193935]
[1767481751866,0.04959191,90493.0,90490.0,0.02212]
[1767481752194,0.04959191,90493.0,90490.0,0.07737469]
[1767481752397,0.03859291,90493.0,90491.0,0.01105082]
[1767481753248,0.03859291,90493.0,90491.0,0.06630454]
[1767481756288,0.01105033,90495.0,90492.0,0.04799625]
[1767481756608,0.01105033,90495.0,90491.0,0.06630454]
[1767481757036,0.01105033,90495.0,90492.0,0.04799625]
[1767481757337,0.01105009,90497.0,90492.0,0.11430005]
[1767481757547,0.01105009,90497.0,90493.0,0.04799625]
[1767481759033,0.01105009,90497.0,90493.0,0.05904682]
[1767481760248,0.01105021,90496.0,90493.0,0.04699725]
[1767481760669,0.06630182,90496.0,90493.0,0.03401181]
[1767481760988,0.01105045,90494.0,90491.0,0.04799625]
[1767481764585,0.06630322,90494.0,90491.0,0.04799625]
[1767481765099,0.01105045,90494.0,90491.0,0.04799625]
[1767481765631,0.01105057,90493.0,90490.0,0.02212]
[1767481765809,0.01105045,90494.0,90490.0,0.02212]
[1767481766010,0.01105045,90494.0,90490.0,0.07011625]
[1767481766218,0.01105045,90494.0,90490.0,0.12537095]
[1767481766630,0.01105045,90494.0,90490.0,0.08116719]
[1767481766824,0.01105021,90496.0,90491.0,0.01105082]
[1767481767617,0.01105033,90495.0,90491.0,0.01105082]
[1767481768755,0.01105045,90494.0,90490.0,0.05904719]
[1767481770123,0.01105045,90494.0,90489.0,0.066306]
[1767481770124,0.01105082,90491.0,90487.0,0.0459244]
[1767481770327,0.01105082,90491.0,90487.0,0.0459877]
[1767481771042,0.01105094,90490.0,90487.0,0.01111461]
[1767481771249,0.01105082,90491.0,90487.0,0.01111461]
[1767481771652,0.0663042,90492.0,90487.0,0.06637113]
[1767481771895,0.01105082,90491.0,90487.0,0.01111461]
[1767481773086,0.01105082,90491.0,90487.0,0.0583852]
[1767481773796,0.01105082,90491.0,90487.0,0.01111461]
[1767481775058,0.01105094,90490.0,90487.0,6.33e-05]
[1767481775263,0.01105265,90476.0,90470.0,0.29027773]
[1767481775455,0.01105277,90475.0,90471.0,0.06939059]
[1767481775654,0.01105289,90474.0,90472.0,0.04727059]
[1767481775848,0.01105265,90476.0,90474.0,0.01]
[1767481776100,0.01105241,90478.0,90474.0,0.01]
[1767481776398,0.01105241,90478.0,90474.0,0.02164876]
[1767481776826,0.01105241,90478.0,90474.0,0.00959687]
[1767481776827,0.01105253,90477.0,90474.0,0.00959687]
[1767481777531,0.06631569,90477.0,90474.0,0.00059587]
[1767481777672,0.01105253,90477.0,90474.0,0.00059587]
[1767481778143,0.01105253,90477.0,90474.0,0.01164876]
[1767481778351,0.01105228,90479.0,90475.0,0.01105277]
[1767481778920,0.01105192,90482.0,90478.0,0.01105241]
[1767481779120,0.01105192,90482.0,90479.0,0.01]
[1767481779337,0.06631208,90482.0,90479.0,0.01]
[1767481779501,0.06631208,90482.0,90479.0,0.009001]
[1767481779704,0.01105216,90480.0,90477.0,0.01105253]
[1767481780253,0.01005316,90480.0,90477.0,0.01105253]
[1767481780471,0.04503821,90479.0,90475.0,0.02736887]
[1767481780668,0.04503821,90479.0,90471.0,0.01386772]
[1767481781438,0.01005316,90480.0,90474.0,0.04727059]
[1767481781842,0.01005316,90480.0,90476.0,0.01105265]
[1767481782774,0.01105228,90479.0,90475.0,0.01105277]
[1767481783341,0.000999,90475.0,90474.0,0.01105289]
[1767481783676,0.01105241,90478.0,90474.0,0.01105289]
[1767481785429,0.000999,90474.0,90472.0,0.01105314]
[1767481785633,0.01105265,90476.0,90470.0,0.06631998]
[1767481785946,0.01105265,90476.0,90468.0,0.00023457]
[1767481785947,0.01105326,90471.0,90468.0,0.00023457]
[1767481786533,0.05526693,90470.0,90468.0,0.00023457]
[1767481786733,0.01105326,90471.0,90468.0,0.00023457]
[1767481786969,0.01105314,90472.0,90468.0,0.0112882]
[1767481787133,0.01105302,90473.0,90469.0,0.01105351]
[1767481787353,0.06631773,90474.0,90471.0,0.04727059]
[1767481787553,0.06631773,90474.0,90473.0,0.01]
[1767481787777,0.06631773,90474.0,90473.0,0.009001]
[1767481788011,0.06631773,90474.0,90471.0,0.04727059]
[1767481788390,0.0552656,90473.0,90471.0,0.04727059]
[1767481788768,0.0552656,90473.0,90471.0,0.04627159]
[1767481790494,0.01105375,90467.0,90464.0,0.0001498]
[1767481790707,0.01105363,90468.0,90467.0,0.04826959]
[1767481790883,0.01105363,90468.0,90467.0,0.00995583]
[1767481791409,0.05526801,90469.0,90464.0,0.01120392]
[1767481791611,0.01105375,90467.0,90464.0,0.04742039]
[1767481794610,0.05526938,90466.0,90464.0,0.04742039]
[1767481794828,0.05526938,90466.0,90464.0,0.00010563]
[1767481795023,0.01105375,90467.0,90464.0,0.00010563]
[1767481795387,0.01105375,90467.0,90464.0,0.00016872]
[1767481795641,0.06632236,90468.0,90464.0,0.00016872]
[1767481796470,0.01105363,90468.0,90464.0,0.01122284]
[1767481796675,0.01105351,90469.0,90465.0,0.01105399]
[1767481796897,0.01105363,90468.0,90464.0,0.01122284]
[1767481797747,0.01105363,90468.0,90464.0,0.05849343]
[1767481797956,0.01105363,90468.0,90464.0,0.01122284]
[1767481798154,0.04503821,90467.0,90462.0,0.0403333]
[1767481798312,0.04503821,90467.0,90465.0,0.05526961]
[1767481798517,0.04503821,90467.0,90464.0,0.01105412]
[1767481799852,0.04403921,90467.0,90464.0,0.01105412]
[1767481800234,0.04403921,90467.0,90463.0,0.04737907]
[1767481800757,0.01105375,90467.0,90462.0,0.01105436]
[1767481800962,0.01105399,90465.0,90462.0,0.01105436]
[1767481801159,0.0110085,90465.0,90462.0,0.01105436]
[1767481801309,0.01105387,90466.0,90463.0,0.0498317]
[1767481801793,0.01105363,90468.0,90464.0,0.06088582]
[1767481801998,0.01105375,90467.0,90464.0,0.0498317]
[1767481802131,0.01105375,90467.0,90464.0,0.06088582]
[1767481802693,0.01105338,90470.0,90466.0,0.0498317]
[1767481804008,0.01105351,90469.0,90466.0,0.0498317]
[1767481804520,0.01105351,90469.0,90466.0,0.0488327]
[1767481804682,0.0663215,90469.0,90466.0,0.0488327]
[1767481805115,0.01105338,90470.0,90469.0,0.000999]
[1767481805298,0.06631892,90472.0,90469.0,0.01085482]
[1767481805913,0.06631892,90472.0,90469.0,0.05978753]
[1767481807426,0.06631892,90472.0,90469.0,0.05974056]
[1767481808143,0.06631489,90478.0,90472.0,0.000899]
[1767481808302,0.06631489,90478.0,90471.0,0.01105326]
[1767481808303,0.05526335,90476.0,90471.0,0.01105326]
[1767481808497,0.01105277,90475.0,90472.0,0.01105314]
[1767481809854,0.0552631,90477.0,90472.0,0.01105314]
[1767481810151,6.724e-05,90475.0,90472.0,0.01105314]
[1767481810358,0.01105351,90469.0,90465.0,0.06088569]
[1767481810822,0.01105363,90468.0,90465.0,0.0498317]
[1767481811134,0.000999,90465.0,90462.0,0.01105436]
[1767481811335,0.01205299,90465.0,90461.0,4.012e-05]
[1767481811543,0.05527163,90463.0,90461.0,4.012e-05]
[1767481811763,0.05527163,90463.0,90458.0,0.02212]
[1767481811764,0.05527365,90460.0,90458.0,0.02212]
[1767481812393,0.01105448,90461.0,90458.0,0.02212]
[1767481813832,0.05606541,90460.0,90454.0,0.01105534]
[1767481814277,0.0110546,90460.0,90454.0,0.01105534]
[1767481814978,0.0110546,90460.0,90456.0,0.01105509]
[1767481815175,0.01105473,90459.0,90456.0,0.01105509]
[1767481815768,0.01105485,90458.0,90454.0,0.01105534]
[1767481816310,0.01105473,90459.0,90455.0,0.01105522]
[1767481816518,0.06632808,90460.0,90456.0,0.01105509]
[1767481817669,0.01105448,90461.0,90458.0,0.0498317]
[1767481817891,0.0663258,90463.0,90458.0,0.06088655]
[1767481818348,0.01105436,90462.0,90458.0,0.06088655]
[1767481819477,0.01105448,90461.0,90458.0,0.0498317]
[1767481820192,0.06632741,90461.0,90458.0,0.0498317]
[1767481820396,0.06632741,90461.0,90458.0,0.0488327]
[1767481820613,0.05527365,90459.0,90458.0,0.0488327]
[1767481820790,0.06632741,90461.0,90458.0,0.0488327]
[1767481821416,0.05527347,90460.0,90458.0,0.0488327]
[1767481822197,0.05527347,90460.0,90458.0,0.04868919]
[1767481822529,0.06632741,90461.0,90458.0,0.04868919]
[1767481823029,0.05527346,90460.0,90458.0,0.04868919]
[1767481824368,0.05527346,90460.0,90458.0,0.04864504]
[1767481824574,0.01105473,90459.0,90456.0,0.0498317]
[1767481827567,0.06632877,90459.0,90456.0,0.0498317]
[1767481827768,0.06632877,90459.0,90454.0,0.01105534]
[1767481827978,0.06632877,90459.0,90454.0,0.06088704]
[1767481829373,0.06632877,90459.0,90455.0,0.01105522]
[1767481829592,0.06632877,90459.0,90456.0,0.0498317]
[1767481830143,0.06632877,90459.0,90456.0,0.04973169]
[1767481830737,0.01105473,90459.0,90456.0,0.04973169]
[1767481832189,0.01105497,90457.0,90454.0,0.04679338]
[1767481832424,0.01105509,90456.0,90451.0,0.05784908]
[1767481832602,0.01105522,90455.0,90451.0,0.05784908]
[1767481832804,0.01105509,90456.0,90451.0,0.04679338]
[1767481833007,0.06633351,90452.0,90449.0,0.07650719]
[1767481833208,0.01101547,90452.0,90449.0,0.07650719]
[1767481833616,0.01105546,90453.0,90449.0,0.07650719]
[1767481833818,0.01105546,90453.0,90449.0,0.14284284]
[1767481834226,0.04562263,90452.0,90449.0,0.09284284]
[1767481834434,0.01105546,90453.0,90447.0,0.05528061]
[1767481834838,0.01105546,90453.0,90448.0,0.05527997]
[1767481835475,0.01105546,90453.0,90449.0,0.04679338]
[1767481835834,0.01105546,90453.0,90449.0,0.05784933]
[1767481837106,0.000999,90449.0,90447.0,0.01105619]
[1767481837310,0.06774263,90462.0,90446.0,0.0001498]
[1767481837311,0.01105485,90458.0,90454.0,0.01105534]
[1767481837491,0.06632804,90460.0,90455.0,0.06628675]
[1767481837870,0.0110546,90460.0,90455.0,0.06628675]
[1767481838066,0.01105448,90461.0,90457.0,0.01105497]
[1767481838266,0.0110546,90460.0,90456.0,0.01105509]
[1767481838472,0.01105448,90461.0,90460.0,0.000999]
[1767481838853,0.0110546,90460.0,90457.0,0.05784835]
[1767481839187,0.0110546,90460.0,90457.0,0.01105497]
[1767481839616,0.03317436,90462.0,90458.0,0.01105485]
[1767481840186,0.01105448,90461.0,90457.0,0.01105497]
[1767481840570,0.01105473,90459.0,90455.0,0.01101107]
[1767481841319,0.01105522,90455.0,90452.0,0.04679338]
[1767481841459,0.06633244,90454.0,90449.0,0.05784933]
[1767481841819,0.01105534,90454.0,90450.0,0.01105583]
[1767481841955,0.01105558,90452.0,90449.0,0.04679338]
[1767481842495,0.01105595,90449.0,90442.0,0.08846036]
[1767481842668,0.01105595,90449.0,90445.0,0.01105644]
[1767481842854,0.01105595,90449.0,90444.0,0.01105656]
[1767481843676,0.01105595,90449.0,90445.0,0.01105644]
[1767481844195,0.05527958,90450.0,90446.0,0.01106261]
[1767481844358,0.01105583,90450.0,90445.0,0.01633818]
[1767481844787,0.01105583,90450.0,90446.0,0.04679338]
[1767481845289,0.01105595,90449.0,90446.0,0.0578497]
[1767481845463,0.01105595,90449.0,90446.0,0.01105632]
[1767481846093,0.00413065,90448.0,90445.0,0.04679338]
[1767481846319,0.00413065,90448.0,90445.0,0.10207512]
[1767481846695,0.00413065,90448.0,90445.0,0.01105644]
[1767481847308,0.01105595,90449.0,90440.0,0.05528466]
[1767481847309,0.00413065,90445.0,90440.0,0.05528466]
[1767481847512,0.00413065,90445.0,90444.0,0.05528282]
[1767481847513,0.00512965,90445.0,90444.0,0.05528282]
[1767481847735,0.0110557,90451.0,90445.0,0.0673373]
[1767481847936,0.01105583,90450.0,90446.0,0.01105632]
[1767481848113,0.01105595,90449.0,90445.0,0.01205544]
[1767481848363,0.01105595,90449.0,90445.0,0.05884882]
[1767481848542,7.512e-05,90449.0,90446.0,0.01105632]
[1767481848701,0.01105583,90450.0,90449.0,0.00479523]
[1767481848902,0.01105583,90450.0,90449.0,0.00515358]
[1767481849222,0.01105583,90450.0,90449.0,0.00035835]
[1767481850463,0.0110557,90451.0,90449.0,0.00035835]
[1767481855130,0.01105558,90452.0,90449.0,0.00035835]
[1767481855274,0.0663339,90452.0,90449.0,0.04715173]
[1767481855473,0.01105558,90452.0,90449.0,0.04679373]
[1767481855677,0.01105558,90452.0,90449.0,3.5e-07]
[1767481855890,0.066334,90452.0,90449.0,3.5e-07]
[1767481856439,0.05527759,90453.0,90449.0,3.5e-07]
[1767481856440,0.05527596,90456.0,90452.0,0.000358]
[1767481856582,0.22109251,90460.0,90452.0,0.000358]
[1767481856583,0.0663296,90458.0,90455.0,0.04679338]
[1767481856784,0.02212,90457.0,90455.0,0.04615238]
[1767481856984,0.02212,90457.0,90454.0,0.01105534]
[1767481857417,0.02212,90457.0,90454.0,0.06633159]
[1767481857618,0.021121,90457.0,90454.0,0.06633159]
[1767481858013,0.021121,90457.0,90454.0,0.01105534]
[1767481858214,0.021121,90457.0,90455.0,0.04679338]
[1767481858419,0.021121,90457.0,90454.0,0.06633188]
[1767481858817,0.021121,90457.0,90454.0,0.01105534]
[1767481858990,0.01105485,90458.0,90454.0,0.01105534]
[1767481859194,0.02212,90457.0,90454.0,0.0663318]
[1767481859598,0.02203168,90457.0,90454.0,0.0663318]
[1767481860016,0.02203168,90457.0,90454.0,0.01105534]
[1767481860428,0.02203168,90457.0,90454.0,0.01095533]
[1767481860632,0.01105509,90456.0,90452.0,0.04502893]
[1767481860852,0.01105522,90455.0,90452.0,0.05608451]
[1767481861536,0.01105509,90456.0,90452.0,0.05608451]
[1767481862718,0.02203168,90457.0,90454.0,0.04502893]
[1767481862918,0.04613341,90475.0,90456.0,0.01105509]
[1767481863118,0.0552709,90464.0,90460.0,0.29055771]
[1767481863326,0.05718777,90462.0,90457.0,0.01632943]
[1767481863568,0.05718777,90462.0,90439.0,0.04502893]
[1767481863569,0.0552641,90475.0,90468.0,0.01105363]
[1767481863725,0.01105265,90476.0,90472.0,0.01105314]